[Event "Titled Tuesday Blitz February 28 Early 2023"]
[White "So, Wesley"]
[Black "Carlsen, Magnus"]
[WhiteFideId "5202213"]
[BlackFideId "1503014"]
[WhiteElo "2739"]
[BlackElo "2852"]
[Result "1-0"]
[Round "09"]
[TimeControl "180+2"]
[Date "2023.02.28"]
[WhiteClock "0:00:06"]
[BlackClock "0:00:02"]

1. e4 {[%clk 0:03:00]}  e5 {[%clk 0:02:56]} 2. Nf3 {[%clk 0:03:00]}  Nc6 {[%clk 0:02:57]} 3. Bc4 {[%clk 0:02:59]}  Nf6 {[%clk 0:02:57]} 4. d3 {[%clk 0:02:57]}  Bc5 {[%clk 0:02:54]} 5. c3 {[%clk 0:02:55]}  d6 {[%clk 0:02:48]} 6. O-O {[%clk 0:02:54]}  h6 {[%clk 0:02:47]} 7. b4 {[%clk 0:02:53]}  Bb6 {[%clk 0:02:47]} 8. Nbd2 {[%clk 0:02:49]}  O-O {[%clk 0:02:42]} 9. Re1 {[%clk 0:02:43]}  Ne7 {[%clk 0:02:42]} 10. a4 {[%clk 0:02:35]}  c6 {[%clk 0:02:41]} 11. a5 {[%clk 0:02:34]}  Bc7 {[%clk 0:02:41]} 12. d4 {[%clk 0:02:35]}  Ng6 {[%clk 0:02:35]} 13. dxe5 {[%clk 0:02:35]}  Nxe5 {[%clk 0:02:34]} 14. Nxe5 {[%clk 0:02:32]}  dxe5 {[%clk 0:02:34]} 15. Bf1 {[%clk 0:02:23]}  Qe7 {[%clk 0:02:26]} 16. Nc4 {[%clk 0:02:13]}  Be6 {[%clk 0:02:20]} 17. Qc2 {[%clk 0:02:05]}  b5 {[%clk 0:02:17]} 18. axb6 {[%clk 0:01:57]}  axb6 {[%clk 0:02:17]} 19. Bd2 {[%clk 0:01:34]}  b5 {[%clk 0:02:13]} 20. Na5 {[%clk 0:01:34]}  Qd7 {[%clk 0:01:56]} 21. Be3 {[%clk 0:01:27]}  Rfd8 {[%clk 0:01:47]} 22. Nb7 {[%clk 0:01:23]}  Rdb8 {[%clk 0:01:42]} 23. Nc5 {[%clk 0:01:22]}  Qe8 {[%clk 0:01:43]} 24. h3 {[%clk 0:01:13]}  Rxa1 {[%clk 0:01:29]} 25. Rxa1 {[%clk 0:01:14]}  Bb6 {[%clk 0:01:29]} 26. Ra6 {[%clk 0:01:00]}  Bxc5 {[%clk 0:01:23]} 27. Bxc5 {[%clk 0:01:01]}  Qc8 {[%clk 0:01:23]} 28. Ra5 {[%clk 0:00:57]}  Qd7 {[%clk 0:01:18]} 29. Ra7 {[%clk 0:00:55]}  Qc8 {[%clk 0:01:15]} 30. Bd6 {[%clk 0:00:54]}  Ra8 {[%clk 0:01:14]} 31. Rxa8 {[%clk 0:00:54]}  Qxa8 {[%clk 0:01:15]} 32. Bxe5 {[%clk 0:00:53]}  Qa1 {[%clk 0:01:16]} 33. f3 {[%clk 0:00:44]}  Bc4 {[%clk 0:01:16]} 34. Qf2 {[%clk 0:00:45]}  Nd7 {[%clk 0:01:15]} 35. Bd4 {[%clk 0:00:44]}  Nf8 {[%clk 0:01:16]} 36. f4 {[%clk 0:00:20]}  Ne6 {[%clk 0:01:15]} 37. Be5 {[%clk 0:00:19]}  f6 {[%clk 0:01:15]} 38. Bd6 {[%clk 0:00:18]}  Bxf1 {[%clk 0:01:12]} 39. Qxf1 {[%clk 0:00:19]}  Qxc3 {[%clk 0:01:12]} 40. Kh2 {[%clk 0:00:14]}  Qd4 {[%clk 0:01:10]} 41. e5 {[%clk 0:00:15]}  Nxf4 {[%clk 0:01:10]} 42. Qf3 {[%clk 0:00:10]}  Nd3 {[%clk 0:00:33]} 43. Qxc6 {[%clk 0:00:08]}  Nxe5 {[%clk 0:00:30]} 44. Qc8+ {[%clk 0:00:05]}  Kh7 {[%clk 0:00:31]} 45. Qf5+ {[%clk 0:00:04]}  Ng6 {[%clk 0:00:31]} 46. Bg3 {[%clk 0:00:02]}  Qe3 {[%clk 0:00:10]} 47. h4 {[%clk 0:00:02]}  h5 {[%clk 0:00:10]} 48. Qxh5+ {[%clk 0:00:02]}  Qh6 {[%clk 0:00:10]} 49. Qf5 {[%clk 0:00:02]}  Kg8 {[%clk 0:00:10]} 50. Qc8+ {[%clk 0:00:02]}  Kh7 {[%clk 0:00:07]} 51. Qf5 {[%clk 0:00:03]}  Kg8 {[%clk 0:00:06]} 52. Qxb5 {[%clk 0:00:03]}  Nxh4 {[%clk 0:00:05]} 53. Qc4+ {[%clk 0:00:03]}  Kf8 {[%clk 0:00:04]} 54. Qxh4 {[%clk 0:00:04]}  Qd2 {[%clk 0:00:04]} 55. Qh8+ {[%clk 0:00:04]}  Kf7 {[%clk 0:00:04]} 56. Qh5+ {[%clk 0:00:05]}  Kf8 {[%clk 0:00:05]} 57. b5 {[%clk 0:00:05]}  Qb4 {[%clk 0:00:03]} 58. Qh8+ {[%clk 0:00:04]}  Kf7 {[%clk 0:00:03]} 59. Qh5+ {[%clk 0:00:05]}  Ke6 {[%clk 0:00:04]} 60. Qe8+ {[%clk 0:00:05]}  Kf5 {[%clk 0:00:04]} 61. Qd7+ {[%clk 0:00:06]}  Kg6 {[%clk 0:00:04]} 62. Qd3+ {[%clk 0:00:06]}  Kf7 {[%clk 0:00:04]} 63. Qd5+ {[%clk 0:00:06]}  Kg6 {[%clk 0:00:04]} 64. Qc6 {[%clk 0:00:06]}  Qd2 {[%clk 0:00:03]} 65. Qe8+ {[%clk 0:00:06]}  Kh7 {[%clk 0:00:02]} 66. Qh5+ {[%clk 0:00:05]}  Kg8 {[%clk 0:00:03]} 67. b6 {[%clk 0:00:06]}  Qb2 {[%clk 0:00:02]} 68. Qd5+ {[%clk 0:00:06]} 1-0


[Site "https://www.chess.com"]

[Event "Titled Tuesday Blitz February 28 Early 2023"]
[White "Le, Tuan Minh"]
[Black "Matlakov, Maxim"]
[WhiteFideId "12401153"]
[BlackFideId "4168003"]
[WhiteElo "2558"]
[BlackElo "2666"]
[Result "1/2-1/2"]
[Round "09"]
[TimeControl "180+2"]
[Date "2023.02.28"]
[WhiteClock "0:00:04"]
[BlackClock "0:00:03"]

1. d4 {[%clk 0:03:00]}  d5 {[%clk 0:02:58]} 2. Nf3 {[%clk 0:03:00]}  Nf6 {[%clk 0:02:58]} 3. Bg5 {[%clk 0:03:01]}  Ne4 {[%clk 0:02:57]} 4. Bf4 {[%clk 0:03:01]}  Bf5 {[%clk 0:02:55]} 5. e3 {[%clk 0:02:59]}  e6 {[%clk 0:02:56]} 6. Bd3 {[%clk 0:02:53]}  Bd6 {[%clk 0:02:54]} 7. Bg3 {[%clk 0:02:52]}  O-O {[%clk 0:02:52]} 8. O-O {[%clk 0:02:48]}  Nd7 {[%clk 0:02:48]} 9. c4 {[%clk 0:02:43]}  dxc4 {[%clk 0:02:43]} 10. Bxc4 {[%clk 0:02:41]}  Bxg3 {[%clk 0:02:36]} 11. hxg3 {[%clk 0:02:40]}  c5 {[%clk 0:02:37]} 12. Bd3 {[%clk 0:02:18]}  Rc8 {[%clk 0:02:33]} 13. Nc3 {[%clk 0:02:12]}  Ndf6 {[%clk 0:02:30]} 14. Nxe4 {[%clk 0:01:52]}  Bxe4 {[%clk 0:02:30]} 15. Bxe4 {[%clk 0:01:43]}  Nxe4 {[%clk 0:02:31]} 16. Rc1 {[%clk 0:01:43]}  Qd5 {[%clk 0:02:30]} 17. dxc5 {[%clk 0:01:38]}  Rxc5 {[%clk 0:02:23]} 18. Qxd5 {[%clk 0:01:35]}  Rxd5 {[%clk 0:02:19]} 19. Rc7 {[%clk 0:01:35]}  Rb8 {[%clk 0:02:17]} 20. Rfc1 {[%clk 0:01:26]}  h6 {[%clk 0:02:12]} 21. a3 {[%clk 0:01:14]}  a5 {[%clk 0:02:09]} 22. R7c4 {[%clk 0:01:11]}  Nd6 {[%clk 0:02:02]} 23. Rc5 {[%clk 0:01:11]}  Rxc5 {[%clk 0:01:58]} 24. Rxc5 {[%clk 0:01:12]}  Rc8 {[%clk 0:01:55]} 25. Rxc8+ {[%clk 0:01:05]}  Nxc8 {[%clk 0:01:56]} 26. Kf1 {[%clk 0:01:05]}  Kf8 {[%clk 0:01:56]} 27. Ke2 {[%clk 0:01:06]}  Ke7 {[%clk 0:01:55]} 28. Kd3 {[%clk 0:01:01]}  Nd6 {[%clk 0:01:54]} 29. Ne5 {[%clk 0:00:51]}  b6 {[%clk 0:01:39]} 30. g4 {[%clk 0:00:42]}  Kd8 {[%clk 0:01:35]} 31. Nc4 {[%clk 0:00:39]}  Kc7 {[%clk 0:01:22]} 32. Ne5 {[%clk 0:00:36]}  f6 {[%clk 0:01:09]} 33. Ng6 {[%clk 0:00:37]}  Kc6 {[%clk 0:01:02]} 34. Nf4 {[%clk 0:00:37]}  e5 {[%clk 0:00:53]} 35. Nh5 {[%clk 0:00:37]}  Ne8 {[%clk 0:00:52]} 36. Ng3 {[%clk 0:00:26]}  Nd6 {[%clk 0:00:51]} 37. f3 {[%clk 0:00:18]}  Kd5 {[%clk 0:00:50]} 38. e4+ {[%clk 0:00:18]}  Kc5 {[%clk 0:00:47]} 39. b3 {[%clk 0:00:17]}  g6 {[%clk 0:00:44]} 40. Nf1 {[%clk 0:00:18]}  Nb5 {[%clk 0:00:37]} 41. a4 {[%clk 0:00:14]}  Nd4 {[%clk 0:00:37]} 42. Nd2 {[%clk 0:00:15]}  Kb4 {[%clk 0:00:33]} 43. Nc4 {[%clk 0:00:15]}  Nxb3 {[%clk 0:00:24]} 44. Nxb6 {[%clk 0:00:16]}  Nc5+ {[%clk 0:00:25]} 45. Kc2 {[%clk 0:00:16]}  Nxa4 {[%clk 0:00:16]} 46. Nd5+ {[%clk 0:00:16]}  Kc4 {[%clk 0:00:14]} 47. Nxf6 {[%clk 0:00:17]}  Nc5 {[%clk 0:00:14]} 48. Nd5 {[%clk 0:00:05]}  Nd3 {[%clk 0:00:10]} 49. Ne7 {[%clk 0:00:02]}  g5 {[%clk 0:00:09]} 50. Nf5 {[%clk 0:00:02]}  Ne1+ {[%clk 0:00:08]} 51. Kd2 {[%clk 0:00:02]}  Nxg2 {[%clk 0:00:08]} 52. Nxh6 {[%clk 0:00:02]}  a4 {[%clk 0:00:08]} 53. Nf7 {[%clk 0:00:03]}  Kd4 {[%clk 0:00:08]} 54. Nxg5 {[%clk 0:00:03]}  a3 {[%clk 0:00:04]} 55. Kc2 {[%clk 0:00:03]}  Ke3 {[%clk 0:00:03]} 56. Nf7 {[%clk 0:00:04]}  Ne1+ {[%clk 0:00:03]} 57. Kb3 {[%clk 0:00:04]}  Nxf3 {[%clk 0:00:03]} 58. g5 {[%clk 0:00:03]}  Nxg5 {[%clk 0:00:01]} 59. Nxg5 {[%clk 0:00:04]}  Kf4 {[%clk 0:00:02]} 60. Ne6+ {[%clk 0:00:03]}  Kxe4 {[%clk 0:00:02]} 61. Kxa3 {[%clk 0:00:04]}  Kd5 {[%clk 0:00:03]} 62. Ng5 {[%clk 0:00:04]}  e4 {[%clk 0:00:03]} 63. Nxe4 {[%clk 0:00:04]} 1/2-1/2


[Site "https://www.chess.com"]

[Event "Titled Tuesday Blitz February 28 Early 2023"]
[White "Abdrlauf, Elham"]
[Black "Lazavik, Denis"]
[WhiteFideId "1533533"]
[BlackFideId "13515110"]
[WhiteElo "2476"]
[BlackElo "2560"]
[Result "1-0"]
[Round "09"]
[TimeControl "180+2"]
[Date "2023.02.28"]
[WhiteClock "0:00:22"]
[BlackClock "0:00:03"]

1. e4 {[%clk 0:03:00]}  e5 {[%clk 0:02:59]} 2. Nc3 {[%clk 0:03:00]}  Nf6 {[%clk 0:02:59]} 3. d4 {[%clk 0:02:59]}  exd4 {[%clk 0:02:59]} 4. Qxd4 {[%clk 0:03:00]}  Nc6 {[%clk 0:02:59]} 5. Qd3 {[%clk 0:03:00]}  Bc5 {[%clk 0:02:57]} 6. Be3 {[%clk 0:02:59]}  Bxe3 {[%clk 0:02:47]} 7. Qxe3 {[%clk 0:03:00]}  O-O {[%clk 0:02:46]} 8. O-O-O {[%clk 0:03:00]}  Re8 {[%clk 0:02:46]} 9. f4 {[%clk 0:03:00]}  d6 {[%clk 0:02:43]} 10. Nf3 {[%clk 0:02:57]}  Bf5 {[%clk 0:02:09]} 11. Bd3 {[%clk 0:02:52]}  Nb4 {[%clk 0:01:47]} 12. Rhe1 {[%clk 0:02:51]}  Nxd3+ {[%clk 0:01:46]} 13. Qxd3 {[%clk 0:02:52]}  Bg4 {[%clk 0:01:44]} 14. h3 {[%clk 0:02:49]}  Bxf3 {[%clk 0:01:44]} 15. Qxf3 {[%clk 0:02:49]}  Nd7 {[%clk 0:01:44]} 16. g4 {[%clk 0:02:48]}  Qb8 {[%clk 0:01:28]} 17. e5 {[%clk 0:02:41]}  c6 {[%clk 0:01:19]} 18. Ne4 {[%clk 0:02:33]}  d5 {[%clk 0:01:20]} 19. Nd6 {[%clk 0:02:33]}  Re6 {[%clk 0:01:16]} 20. g5 {[%clk 0:02:27]}  Qc7 {[%clk 0:01:06]} 21. h4 {[%clk 0:02:18]}  Rf8 {[%clk 0:00:58]} 22. h5 {[%clk 0:02:10]}  Kh8 {[%clk 0:00:52]} 23. Qg4 {[%clk 0:02:08]}  Nc5 {[%clk 0:00:35]} 24. f5 {[%clk 0:01:51]}  Rxe5 {[%clk 0:00:33]} 25. Rxe5 {[%clk 0:01:45]}  Qxd6 {[%clk 0:00:33]} 26. Qd4 {[%clk 0:01:40]}  f6 {[%clk 0:00:23]} 27. gxf6 {[%clk 0:01:33]}  gxf6 {[%clk 0:00:24]} 28. Re2 {[%clk 0:01:25]}  Nd7 {[%clk 0:00:23]} 29. h6 {[%clk 0:01:10]}  Ne5 {[%clk 0:00:23]} 30. Rg1 {[%clk 0:01:04]}  c5 {[%clk 0:00:17]} 31. Qe3 {[%clk 0:01:00]}  Nf7 {[%clk 0:00:10]} 32. Rg7 {[%clk 0:00:45]}  d4 {[%clk 0:00:08]} 33. Qe4 {[%clk 0:00:31]}  Ng5 {[%clk 0:00:06]} 34. Qe7 {[%clk 0:00:22]}  Qf4+ {[%clk 0:00:06]} 35. Kb1 {[%clk 0:00:23]}  Rg8 {[%clk 0:00:03]} 36. Rxg8+ {[%clk 0:00:22]} 1-0


[Site "https://www.chess.com"]

[Event "Titled Tuesday Blitz February 28 Early 2023"]
[White "Sadhwani, Raunak"]
[Black "Erigaisi Arjun"]
[WhiteFideId "35093487"]
[BlackFideId "35009192"]
[WhiteElo "2631"]
[BlackElo "2737"]
[Result "1-0"]
[Round "09"]
[TimeControl "180+2"]
[Date "2023.02.28"]
[WhiteClock "0:00:05"]
[BlackClock "0:00:04"]

1. e4 {[%clk 0:02:57]}  c6 {[%clk 0:02:56]} 2. Nf3 {[%clk 0:02:53]}  d5 {[%clk 0:02:55]} 3. Nc3 {[%clk 0:02:54]}  g6 {[%clk 0:02:49]} 4. d4 {[%clk 0:02:51]}  Bg7 {[%clk 0:02:48]} 5. h3 {[%clk 0:02:50]}  Nf6 {[%clk 0:02:38]} 6. e5 {[%clk 0:02:43]}  Ne4 {[%clk 0:02:37]} 7. Nxe4 {[%clk 0:02:40]}  dxe4 {[%clk 0:02:38]} 8. Ng5 {[%clk 0:02:40]}  c5 {[%clk 0:02:37]} 9. e6 {[%clk 0:01:56]}  Bxe6 {[%clk 0:02:19]} 10. Nxe6 {[%clk 0:01:54]}  fxe6 {[%clk 0:02:20]} 11. dxc5 {[%clk 0:01:52]}  Qxd1+ {[%clk 0:02:21]} 12. Kxd1 {[%clk 0:01:53]}  Nd7 {[%clk 0:02:22]} 13. c3 {[%clk 0:01:32]}  Nxc5 {[%clk 0:02:13]} 14. Kc2 {[%clk 0:01:32]}  a6 {[%clk 0:01:50]} 15. Be3 {[%clk 0:01:26]}  Rc8 {[%clk 0:01:51]} 16. a4 {[%clk 0:01:20]}  Nd7 {[%clk 0:01:46]} 17. a5 {[%clk 0:01:20]}  Nf6 {[%clk 0:01:38]} 18. Ra4 {[%clk 0:01:12]}  O-O {[%clk 0:01:38]} 19. Be2 {[%clk 0:01:11]}  Nd5 {[%clk 0:01:05]} 20. Bg4 {[%clk 0:01:09]}  Nxe3+ {[%clk 0:01:00]} 21. fxe3 {[%clk 0:01:10]}  Rf2+ {[%clk 0:01:00]} 22. Kb3 {[%clk 0:01:05]}  Rc5 {[%clk 0:00:56]} 23. Bxe6+ {[%clk 0:01:02]}  Kf8 {[%clk 0:00:56]} 24. Rb4 {[%clk 0:00:56]}  Rxa5 {[%clk 0:00:48]} 25. Rxb7 {[%clk 0:00:40]}  Be5 {[%clk 0:00:49]} 26. Rd1 {[%clk 0:00:34]}  Rxg2 {[%clk 0:00:38]} 27. Rd8+ {[%clk 0:00:34]}  Kg7 {[%clk 0:00:38]} 28. Bd5 {[%clk 0:00:29]}  Bf6 {[%clk 0:00:33]} 29. Bxe4 {[%clk 0:00:22]}  Rg3 {[%clk 0:00:34]} 30. Rd5 {[%clk 0:00:18]}  Ra1 {[%clk 0:00:31]} 31. Rd3 {[%clk 0:00:09]}  Rxh3 {[%clk 0:00:31]} 32. Bd5 {[%clk 0:00:10]}  h5 {[%clk 0:00:27]} 33. Be6 {[%clk 0:00:09]}  Rh2 {[%clk 0:00:26]} 34. Rd8 {[%clk 0:00:06]}  Kh6 {[%clk 0:00:19]} 35. Rg8 {[%clk 0:00:07]}  Ra5 {[%clk 0:00:10]} 36. Kc4 {[%clk 0:00:04]}  Rb5 {[%clk 0:00:09]} 37. Rxb5 {[%clk 0:00:03]}  axb5+ {[%clk 0:00:10]} 38. Kb3 {[%clk 0:00:03]}  h4 {[%clk 0:00:10]} 39. Bd7 {[%clk 0:00:02]}  h3 {[%clk 0:00:10]} 40. Ra8 {[%clk 0:00:02]}  Rh1 {[%clk 0:00:09]} 41. Bxb5 {[%clk 0:00:02]}  h2 {[%clk 0:00:08]} 42. Bc6 {[%clk 0:00:02]}  Re1 {[%clk 0:00:08]} 43. Kc4 {[%clk 0:00:02]}  g5 {[%clk 0:00:07]} 44. b4 {[%clk 0:00:02]}  g4 {[%clk 0:00:07]} 45. b5 {[%clk 0:00:03]}  g3 {[%clk 0:00:06]} 46. b6 {[%clk 0:00:03]}  h1=Q {[%clk 0:00:05]} 47. Bxh1 {[%clk 0:00:04]}  Rxh1 {[%clk 0:00:06]} 48. b7 {[%clk 0:00:04]}  Be5 {[%clk 0:00:07]} 49. Rh8+ {[%clk 0:00:05]}  Bxh8 {[%clk 0:00:05]} 50. b8=Q {[%clk 0:00:05]}  Rh4+ {[%clk 0:00:03]} 51. Kd3 {[%clk 0:00:05]}  Bf6 {[%clk 0:00:03]} 52. Qxg3 {[%clk 0:00:05]}  Rh5 {[%clk 0:00:03]} 53. c4 {[%clk 0:00:05]}  Rg5 {[%clk 0:00:03]} 54. Qf4 {[%clk 0:00:05]}  Kg6 {[%clk 0:00:04]} 55. Qe4+ {[%clk 0:00:05]}  Kf7 {[%clk 0:00:05]} 56. Qc6 {[%clk 0:00:06]}  Re5 {[%clk 0:00:05]} 57. c5 {[%clk 0:00:06]}  Kf8 {[%clk 0:00:05]} 58. Qc8+ {[%clk 0:00:06]}  Kf7 {[%clk 0:00:05]} 59. Qc6 {[%clk 0:00:05]}  Kf8 {[%clk 0:00:05]} 60. Qb6 {[%clk 0:00:06]}  Kf7 {[%clk 0:00:05]} 61. c6 {[%clk 0:00:06]}  Rd5+ {[%clk 0:00:05]} 62. Kc4 {[%clk 0:00:06]}  Rd1 {[%clk 0:00:06]} 63. Qb5 {[%clk 0:00:05]}  Rc1+ {[%clk 0:00:06]} 64. Kd5 {[%clk 0:00:04]}  e6+ {[%clk 0:00:05]} 65. Ke4 {[%clk 0:00:04]}  Be7 {[%clk 0:00:05]} 66. Qb7 {[%clk 0:00:05]}  Kf6 {[%clk 0:00:04]} 67. c7 {[%clk 0:00:05]} 1-0


[Site "https://www.chess.com"]

[Event "Titled Tuesday Blitz February 28 Early 2023"]
[White "Dubov, Daniil"]
[Black "Babazada, Khazar"]
[WhiteFideId "24126055"]
[BlackFideId "13413554"]
[WhiteElo "2802"]
[BlackElo "2359"]
[Result "1-0"]
[Round "09"]
[TimeControl "180+2"]
[Date "2023.02.28"]
[WhiteClock "0:00:08"]
[BlackClock "0:00:05"]

1. Nf3 {[%clk 0:02:59]}  c5 {[%clk 0:02:54]} 2. c4 {[%clk 0:02:58]}  Nc6 {[%clk 0:02:54]} 3. Nc3 {[%clk 0:02:58]}  Nf6 {[%clk 0:02:54]} 4. d4 {[%clk 0:02:58]}  cxd4 {[%clk 0:02:54]} 5. Nxd4 {[%clk 0:02:59]}  g6 {[%clk 0:02:55]} 6. e4 {[%clk 0:02:57]}  Bg7 {[%clk 0:02:52]} 7. Be3 {[%clk 0:02:56]}  O-O {[%clk 0:02:52]} 8. Be2 {[%clk 0:02:56]}  Nxd4 {[%clk 0:02:52]} 9. Bxd4 {[%clk 0:02:55]}  d6 {[%clk 0:02:52]} 10. O-O {[%clk 0:02:55]}  a5 {[%clk 0:02:51]} 11. Qc2 {[%clk 0:02:52]}  Bd7 {[%clk 0:02:52]} 12. Rad1 {[%clk 0:02:51]}  Bc6 {[%clk 0:02:51]} 13. c5 {[%clk 0:02:46]}  Ne8 {[%clk 0:02:17]} 14. Bxg7 {[%clk 0:02:44]}  Nxg7 {[%clk 0:02:14]} 15. cxd6 {[%clk 0:02:44]}  exd6 {[%clk 0:02:15]} 16. Qd2 {[%clk 0:02:41]}  Qb6 {[%clk 0:02:14]} 17. Bc4 {[%clk 0:02:40]}  Rad8 {[%clk 0:02:10]} 18. Nd5 {[%clk 0:02:40]}  Bxd5 {[%clk 0:02:09]} 19. Bxd5 {[%clk 0:02:40]}  Nh5 {[%clk 0:02:07]} 20. Qd4 {[%clk 0:02:19]}  Qxd4 {[%clk 0:01:59]} 21. Rxd4 {[%clk 0:02:19]}  Nf6 {[%clk 0:01:59]} 22. Rfd1 {[%clk 0:02:07]}  Rfe8 {[%clk 0:01:44]} 23. Bxb7 {[%clk 0:01:58]}  Rb8 {[%clk 0:01:39]} 24. Bc6 {[%clk 0:01:57]}  Rec8 {[%clk 0:01:12]} 25. Rxd6 {[%clk 0:01:56]}  Ne8 {[%clk 0:01:12]} 26. Bxe8 {[%clk 0:01:56]}  Rxe8 {[%clk 0:01:12]} 27. b3 {[%clk 0:01:42]}  a4 {[%clk 0:00:52]} 28. R1d3 {[%clk 0:01:23]}  axb3 {[%clk 0:00:51]} 29. axb3 {[%clk 0:01:17]}  Rxe4 {[%clk 0:00:50]} 30. Rd8+ {[%clk 0:01:17]}  Rxd8 {[%clk 0:00:51]} 31. Rxd8+ {[%clk 0:01:17]}  Kg7 {[%clk 0:00:51]} 32. Kf1 {[%clk 0:01:18]}  h5 {[%clk 0:00:47]} 33. Rd3 {[%clk 0:01:01]}  Kf6 {[%clk 0:00:46]} 34. Rf3+ {[%clk 0:01:00]}  Kg7 {[%clk 0:00:27]} 35. Re3 {[%clk 0:01:00]}  Rd4 {[%clk 0:00:23]} 36. Ke2 {[%clk 0:01:00]}  Kf6 {[%clk 0:00:24]} 37. Rd3 {[%clk 0:00:57]}  Rb4 {[%clk 0:00:24]} 38. Kd2 {[%clk 0:00:56]}  Ke5 {[%clk 0:00:24]} 39. Kc3 {[%clk 0:00:52]}  Rb7 {[%clk 0:00:24]} 40. b4 {[%clk 0:00:39]}  h4 {[%clk 0:00:25]} 41. Rd2 {[%clk 0:00:29]}  f5 {[%clk 0:00:23]} 42. Kc4 {[%clk 0:00:22]}  Rc7+ {[%clk 0:00:21]} 43. Kb5 {[%clk 0:00:21]}  g5 {[%clk 0:00:20]} 44. Kb6 {[%clk 0:00:20]}  Rc1 {[%clk 0:00:21]} 45. b5 {[%clk 0:00:20]}  g4 {[%clk 0:00:21]} 46. Kb7 {[%clk 0:00:17]}  Rb1 {[%clk 0:00:20]} 47. b6 {[%clk 0:00:17]}  f4 {[%clk 0:00:20]} 48. Kc7 {[%clk 0:00:15]}  Rc1+ {[%clk 0:00:18]} 49. Kb8 {[%clk 0:00:16]}  Rb1 {[%clk 0:00:16]} 50. b7 {[%clk 0:00:16]}  Ke4 {[%clk 0:00:17]} 51. Ra2 {[%clk 0:00:12]}  Rb4 {[%clk 0:00:09]} 52. Ka7 {[%clk 0:00:10]}  g3 {[%clk 0:00:05]} 53. hxg3 {[%clk 0:00:08]} 1-0


[Site "https://www.chess.com"]

[Event "Titled Tuesday Blitz February 28 Early 2023"]
[White "Kravtsiv, Martyn"]
[Black "Deac, Bogdan-Daniel"]
[WhiteFideId "14113147"]
[BlackFideId "1226380"]
[WhiteElo "2695"]
[BlackElo "2649"]
[Result "0-1"]
[Round "09"]
[TimeControl "180+2"]
[Date "2023.02.28"]
[WhiteClock "0:00:02"]
[BlackClock "0:00:03"]

1. e4 {[%clk 0:02:55]}  c6 {[%clk 0:03:00]} 2. Nf3 {[%clk 0:02:54]}  d5 {[%clk 0:03:01]} 3. d3 {[%clk 0:02:54]}  Nd7 {[%clk 0:03:01]} 4. Nc3 {[%clk 0:02:50]}  Ngf6 {[%clk 0:02:58]} 5. e5 {[%clk 0:02:44]}  d4 {[%clk 0:02:57]} 6. Ne2 {[%clk 0:02:27]}  Nxe5 {[%clk 0:02:54]} 7. Nexd4 {[%clk 0:02:10]}  Ng6 {[%clk 0:02:47]} 8. Nb3 {[%clk 0:02:00]}  e5 {[%clk 0:02:45]} 9. Qe2 {[%clk 0:01:46]}  Bb4+ {[%clk 0:02:29]} 10. c3 {[%clk 0:01:45]}  Bd6 {[%clk 0:02:29]} 11. g3 {[%clk 0:01:44]}  O-O {[%clk 0:02:24]} 12. Ng5 {[%clk 0:01:44]}  Bg4 {[%clk 0:02:01]} 13. f3 {[%clk 0:01:43]}  Bd7 {[%clk 0:01:56]} 14. Bg2 {[%clk 0:01:38]}  Nd5 {[%clk 0:01:52]} 15. Bd2 {[%clk 0:01:28]}  f5 {[%clk 0:01:48]} 16. h4 {[%clk 0:01:24]}  h6 {[%clk 0:01:41]} 17. h5 {[%clk 0:01:22]}  Nge7 {[%clk 0:01:32]} 18. Nh3 {[%clk 0:01:21]}  a5 {[%clk 0:01:30]} 19. c4 {[%clk 0:00:57]}  Nb4 {[%clk 0:01:10]} 20. O-O {[%clk 0:00:56]}  a4 {[%clk 0:00:45]} 21. c5 {[%clk 0:00:55]}  Bc7 {[%clk 0:00:44]} 22. Bxb4 {[%clk 0:00:52]}  axb3 {[%clk 0:00:45]} 23. axb3 {[%clk 0:00:53]}  Rxa1 {[%clk 0:00:34]} 24. Rxa1 {[%clk 0:00:52]}  Nd5 {[%clk 0:00:27]} 25. Bd2 {[%clk 0:00:52]}  Re8 {[%clk 0:00:14]} 26. Nf2 {[%clk 0:00:36]}  Qe7 {[%clk 0:00:12]} 27. b4 {[%clk 0:00:35]}  Qf7 {[%clk 0:00:12]} 28. Ra7 {[%clk 0:00:33]}  Bc8 {[%clk 0:00:10]} 29. Ra8 {[%clk 0:00:20]}  Qxh5 {[%clk 0:00:08]} 30. d4 {[%clk 0:00:17]}  e4 {[%clk 0:00:07]} 31. Nh3 {[%clk 0:00:07]}  e3 {[%clk 0:00:06]} 32. Be1 {[%clk 0:00:07]}  f4 {[%clk 0:00:05]} 33. g4 {[%clk 0:00:05]}  Qf7 {[%clk 0:00:05]} 34. Bf1 {[%clk 0:00:05]}  Qf6 {[%clk 0:00:04]} 35. Qd3 {[%clk 0:00:04]}  h5 {[%clk 0:00:04]} 36. gxh5 {[%clk 0:00:03]}  Qf7 {[%clk 0:00:04]} 37. Ng5 {[%clk 0:00:02]}  Qxh5 {[%clk 0:00:03]} 0-1


[Site "https://www.chess.com"]